Cogmind - Beta 17 @@@ ROGUE MODE // 2026.06.22 @ 20:46:23 Player: BlobtheGreat Result: Destroyed by as-66859 with Assembled P-sword Performance ------------- Evolutions (4) 2000 Regions Visited (14) 2800 Robots Destroyed (132) 660 Value Destroyed (4410) 4410 Prototype IDs (27) 540 Alien Tech Used (1) 200 Bonus (10533) 10533 TOTAL SCORE: 21143 Bonus ------- Follower Combat Kills 190 Prayed to X0-1V1 5000 Major X0-1V1 Interference 4700 Met Data Miner 300 Destroyed Z-Imprinter 1000 Friendly Fire -657 Cogmind --------- Core Integrity 0/975 Matter 40/300 Energy 100/100 System Corruption 10% Temperature Cool (20) Movement Core (100) Ox1 Location -6/Deep Caves Parts ------- > --- POWER (2) -------- (None) > --- PROPULSION (7) --- (None) > --- UTILITY (5) ------ Zionite Weapon Casing X0-1V1's Piety Tracker > --- WEAPON (3) ------- CR-A16's Pointy Stick > --- INVENTORY (5) ---- Zionite Weapon Casing Zionite Weapon Casing Heavy Mace Peak State ------------ > --- POWER ------------ Zionite Light DM Reactor Zionite Light DM Reactor > --- PROPULSION ------- Zionite Glidesys I Zionite Glidesys I Zionite Glidesys I > --- UTILITY ---------- Zionite Weapon Casing Zionite Weapon Casing Zionite Heavy Carapace X0-1V1's Piety Tracker > --- WEAPON ----------- Precision Grenade Launcher CR-A16's Pointy Stick > --- INVENTORY -------- Zionite Weapon Casing Zionite Weapon Casing Heavy Mace [Rating: 81] Favorites ----------- Power Heavy Deuterium Engine Engine Heavy Deuterium Engine Power Core Neutrino Core Reactor Zionite Light DM Reactor Propulsion Carbon-fiber Leg Treads Armored Treads Leg Carbon-fiber Leg Hover Unit Zionite Glidesys I Flight Unit VTOL Module Utility X0-1V1's Piety Tracker Device X0-1V1's Piety Tracker Storage Large Storage Unit Processor Core Analyzer Protection Improved Light Armor Plating Weapon Light Assault Rifle Energy Gun Lightning Gun Energy Cannon Heavy Ion Cannon Ballistic Gun Light Assault Rifle Ballistic Cannon Light Cannon Launcher Precision Grenade Launcher Special Weapon Plasma Flamer Impact Weapon Heavy Mace Slashing Weapon Greatsword Piercing Weapon CR-A16's Pointy Stick Build | -11 -10 -9 -9 -8 -7 -7 -7 -7 -6 -6 -6 -6 -6 -6 ------- Run | Yrd Mat Mat Min Mat Fac Low Low Dat Pro Fac Low Low Zio Dee Slots Evolved 8 | . . 2 . 2 2 . . . . 2 . . . . Power . | . . . . . . . . . . . . . . . Propulsion 4 | . . 1 . 1 . . . . . 2 . . . . Utility 3 | . . 1 . . 2 . . . . . . . . . Weapon 1 | . . . . 1 . . . . . . . . . . Parts Attached 120 | 6 12 10 8 14 16 3 6 2 3 17 1 . 4 18 Power 14 | 1 2 . 1 2 2 1 . . . 3 . . . 2 Engine 8 | 1 2 . 1 1 2 . . . . 1 . . . . Core 4 | . . . . 1 . 1 . . . 2 . . . . Reactor 2 | . . . . . . . . . . . . . . 2 Propulsion 36 | 2 4 7 . 4 5 . 1 1 1 5 . . . 6 Treads 10 | 2 1 3 . 4 . . . . . . . . . . Leg 17 | . 3 4 . . 5 . 1 1 . . . . . 3 Wheel . | . . . . . . . . . . . . . . . Hover 3 | . . . . . . . . . . . . . . 3 Flight 6 | . . . . . . . . . 1 5 . . . . Utility 37 | 1 4 3 2 1 5 . 2 . 1 7 1 . 1 9 Device 13 | . 1 1 . . 1 . 1 . 1 5 . . 1 2 Storage 4 | 1 2 1 . . . . . . . . . . . . Processor 5 | . . . 1 . 2 . . . . 1 1 . . . Hackware . | . . . . . . . . . . . . . . . Protection 15 | . 1 1 1 1 2 . 1 . . 1 . . . 7 Artifact . | . . . . . . . . . . . . . . . Weapon 33 | 2 2 . 5 7 4 2 3 1 1 2 . . 3 1 Energy Gun 10 | . 1 . 3 5 . . . . . . . . . 1 Energy Cannon 1 | . . . . . . . 1 . . . . . . . Ballistic Gun 8 | 2 . . . . 3 1 2 . . . . . . . Ballistic Cannon 1 | . 1 . . . . . . . . . . . . . Launcher 7 | . . . 2 1 . 1 . 1 . . . . 2 . Special Weapon 1 | . . . . 1 . . . . . . . . . . Impact Weapon 1 | . . . . . . . . . . 1 . . . . Slashing Weapon 3 | . . . . . 1 . . . 1 1 . . . . Piercing Weapon 1 | . . . . . . . . . . . . . 1 . Special Melee Weapon . | . . . . . . . . . . . . . . . Unidentified Prototypes 14 | . 1 . . . 1 . . . . . . 1 3 8 Corrupted Parts 1 | . . . . 1 . . . . . . . . . . System Corruption 7 | . . . . 7 . . . . . . . . . . Parts Lost 57 | . 5 1 5 2 1 . 2 6 9 1 . . . 25 Power 8 | . 2 . 1 . . . . 1 . . . . . 4 Propulsion 21 | . 2 . . . 1 . 1 2 3 . . . . 12 Utility 13 | . . 1 1 . . . . . 3 . . . . 8 Weapon 15 | . 1 . 3 2 . . 1 3 3 1 . . . 1 Highest Loss Streak 9 | . 2 1 2 1 1 . 1 6 9 1 . . . 7 To Critical Strikes . | . . . . . . . . . . . . . . . Average Backups 11 | 5 10 13 13 14 14 14 12 9 6 2 4 4 5 3 Power . | . . . . . . . . . . . . . . . Propulsion 3 | 3 4 4 6 5 2 2 1 1 . . 2 1 . . Utility 3 | . 2 2 1 2 3 6 5 5 4 1 2 2 3 1 Weapon 4 | . 3 6 5 5 7 6 4 2 1 . . . 1 1 Tool/Special . | . . . . . . . . . . . . . . . Unused Backups 32 | . 2 8 . 1 4 7 . . 5 2 . . 2 1 Power 1 | . . . . . . . . . 1 . . . . . Propulsion 5 | . 2 2 . . . . . . . . . . 1 . Utility 15 | . . 2 . . 2 3 . . 4 2 . . 1 1 Weapon 10 | . . 4 . 1 2 3 . . . . . . . . Tool/Special 1 | . . . . . . 1 . . . . . . . . Average Slot Usage (%) 89 | . 93 87 93 94 99 96 96 88 33 65 87 84 85 53 Engine 6 | . 10 . 7 4 6 7 5 5 2 2 6 5 5 2 Core 1 | . . . . 3 . 2 5 2 . 3 6 5 5 . Treads 10 | . 15 . 31 33 2 . . . . . . . . . Leg 13 | . 12 32 . . 25 28 23 17 5 . . . . 6 Flight 2 | . . . . . . . . . 1 20 31 33 35 5 Device 9 | . . 11 17 8 12 8 8 11 11 21 26 19 17 7 Storage 7 | . 14 11 11 8 7 7 5 5 1 . . . . . Processor 8 | . . . 2 8 19 21 12 5 7 9 11 11 11 4 Protection 5 | . 10 10 3 6 3 . 4 11 1 . . . . 8 Energy Gun 6 | . 4 . 14 19 10 . . . . . . . . . Ballistic Gun 10 | . 18 11 2 . 10 21 22 18 2 . . . . . Ballistic Cannon 1 | . 4 11 2 . . . . . . . . . . . Peak Build Rating 81 | 6 22 29 36 52 63 66 75 77 60 68 61 65 72 81 Average Rating 43 | 5 8 25 33 47 59 62 69 66 25 51 60 60 63 55 On Entrance 44 | . 6 22 29 28 52 63 66 73 60 26 60 61 60 65 Avg Prop Armor Cover (%) 8 | . 7 . . . . . . . . . . . . 11 Naked Turns . | . . . . . . . . . . . . . . . Heaviest Build 79 | 10 28 28 41 43 49 59 79 79 56 29 24 27 27 40 Greatest Support 104 | 40 40 60 60 104 104 63 63 48 47 35 35 39 39 80 Greatest Overweight (x) 3 | 3 1 . . . . . 1 1 1 1 . . . 3 Average Overweight (x) . | . . . . . . . . 1 . . . . . . Largest Inventory Capacity 15 | 8 15 15 15 15 15 15 15 15 15 5 5 5 5 5 Average Capacity 12 | 7 13 15 15 15 15 15 15 15 7 5 5 5 5 5 Most Carried 15 | 8 15 15 15 15 15 15 15 11 11 5 4 5 5 5 Average Carried 11 | 5 10 13 13 14 14 14 12 9 6 3 4 4 4 3 Final Capacity 15 | 8 15 15 15 15 15 15 15 15 5 5 5 5 5 5 Final Carried 15 | 8 15 13 14 15 15 14 10 11 5 4 4 5 5 3 Class Distribution -------------------- 48% | Mutant 35% | Gunner 7% | Scavenger-Sprinter 6% | Scavenger-Executioner Dominant Class ---------------- Mutant | -10/Materials Mutant | -9/Materials Mutant | -9/Mines Gunner | -8/Materials Gunner | -7/Factory Gunner | -7/Lower Caves Scavenger-Executioner | -7/Lower Caves Scavenger-Executioner | -7/Data Miner Mutant | -6/Proximity Caves Scavenger-Sprinter | -6/Factory Scavenger-Sprinter | -6/Lower Caves Scavenger-Sprinter | -6/Lower Caves Scavenger-Sprinter | -6/Zion Mutant | -6/Deep Caves Resources | -11 -10 -9 -9 -8 -7 -7 -7 -7 -6 -6 -6 -6 -6 -6 ----------- Run | Yrd Mat Mat Min Mat Fac Low Low Dat Pro Fac Low Low Zio Dee Matter Collected 3969 | 304 288 209 315 292 417 279 634 333 84 220 . 182 54 358 Remotely . | . . . . . . . . . . . . . . . Salvage Created 5259 | 240 700 349 287 1067 769 425 397 205 54 218 . 81 . 467 Parts 291 | 23 50 7 25 65 43 22 23 5 4 10 . . . 14 Haulers Intercepted 3 | . 2 1 . . . . . . . . . . . . Recyclers Shooed 5 | 1 1 2 1 . . . . . . . . . . . Parts Field Recycled . | . . . . . . . . . . . . . . . Retrieved Matter . | . . . . . . . . . . . . . . . Parts Self-Destructed 42 | . . . . . . 15 21 . 4 . . 2 . . Prevented . | . . . . . . . . . . . . . . . Parts Restored . | . . . . . . . . . . . . . . . Kills | -11 -10 -9 -9 -8 -7 -7 -7 -7 -6 -6 -6 -6 -6 -6 ------- Run | Yrd Mat Mat Min Mat Fac Low Low Dat Pro Fac Low Low Zio Dee Combat Hostiles Destroyed 139 | . 21 2 24 21 10 14 9 3 4 4 . . . 27 Melee 17 | . . . . . . . . . 1 4 . . . 12 Guns 65 | . 17 1 9 12 8 10 8 . . . . . . . Cannons 9 | . 4 1 2 1 . . 1 . . . . . . . AOE 42 | . . . 12 5 . 4 . 3 3 . . . . 15 Classes Destroyed 19 | 2 3 4 2 1 2 2 2 . . . . . . 1 Worker 4 | . . 1 1 . 2 . . . . . . . . . Builder 1 | . . . . 1 . . . . . . . . . . Tunneler 9 | 7 . 1 1 . . . . . . . . . . . Hauler 3 | . 2 1 . . . . . . . . . . . . Recycler 6 | 1 . 3 . . 1 . . . . 1 . . . . Operator 1 | . . 1 . . . . . . . . . . . . Watcher 4 | . . 1 . . 3 . . . . . . . . . Swarmer 31 | . 6 . 5 3 . 7 3 . 4 3 . . . . Grunt 31 | . 15 1 . 11 . 1 3 . . . . . . . Sentry 14 | . . 1 2 7 2 1 1 . . . . . . . Demolisher 2 | . . . 2 . . . . . . . . . . . Specialist 1 | . . . . . . 1 . . . . . . . . Hunter 5 | . . . . . 5 . . . . . . . . . Programmer 3 | . . . . . 3 . . . . . . . . . Behemoth 1 | . . . . . . . 1 . . . . . . . Enhanced Grunt 4 | . . . . . . . . 3 . . . . . 1 Z-Light 7 | . . . . . . . . . . . . . . 7 Samaritan 1 | . . . . . . 1 . . . . . . . . Assembled 36 | . . . 15 . . . . . . 1 . . . 20 Wasp 3 | . . . . . . 3 . . . . . . . . Thug 1 | . . . . . . 1 . . . . . . . . Mutant 1 | . . . . . . . 1 . . . . . . . Best Kill Streak 14 | 2 4 4 14 6 3 4 4 3 3 4 . . . 9 Combat Bots Only 14 | . 4 1 14 5 2 4 4 3 3 3 . . . 9 Max Kills in Single Turn 7 | 1 2 2 7 2 2 2 1 2 1 1 . . . 3 Gunslinging 1 | . . . . . . 1 . . . . . . . . Exploded 7 | . . . 7 2 . 2 . 2 1 . . . . 3 Melee 1 | . . . . . . . . . 1 1 . . . 1 Uniques/NPCs Destroyed 1 | . . . . . . . . . . . . . . 1 Z-Imprinter (-6/Deep Caves) Combat | -11 -10 -9 -9 -8 -7 -7 -7 -7 -6 -6 -6 -6 -6 -6 -------- Run | Yrd Mat Mat Min Mat Fac Low Low Dat Pro Fac Low Low Zio Dee Hostile Shots Fired 877 | . 119 26 91 74 60 46 43 22 65 47 3 7 . 274 Missed 298 | . 33 9 27 22 18 20 15 7 22 25 1 6 . 93 Hits 579 | . 86 17 64 52 42 26 28 15 43 22 2 1 . 181 Melee 21 | . . . 4 . . . . . . . . . . 17 Projectile 558 | . 86 17 60 52 42 26 28 15 43 22 2 1 . 164 AOE 10 | . . . 10 . . . . . . . . . . . Critical Strikes 3 | . . . . 1 . . . . 1 . . . . 1 Part Disruptions 3 | . . . . . 1 . . . . . . . . 2 Actively Blocked 2 | . . . . . . . . . . . . . . 2 Damage Taken 9675 | . 967 220 1147 823 521 373 615 690 877 219 32 18 . 3173 Core 1846 | . 168 14 155 88 74 27 79 45 196 45 16 18 . 921 Absorbed by Shields . | . . . . . . . . . . . . . . . Redirected to Shielding 237 | . 23 . . . . . . . . . . . . 214 Regen/Repaired (Parts) 25 | . . . . . 25 . . . . . . . . . Core Remaining (%) 70 | 100 32 . 52 86 . . . . 80 . . . . . Volleys Fired 371 | 22 92 32 55 52 30 22 19 10 5 . . . . 32 Largest 5 | 2 2 2 2 3 3 3 5 5 2 . . . . 1 Hottest 200 | 40 60 50 100 200 165 86 179 179 93 . . . . 36 Shots Fired 762 | 44 182 64 89 106 87 59 73 20 6 . . . . 32 Gun 623 | 44 161 32 74 93 87 56 65 10 1 . . . . . Cannon 73 | . 21 32 8 . . . 8 3 1 . . . . . Launcher 61 | . . . 7 8 . 3 . 7 4 . . . . 32 Special 5 | . . . . 5 . . . . . . . . . . Kinetic 447 | 44 163 64 17 . 27 56 65 10 1 . . . . . Thermal 36 | . 19 . . 5 . . 8 3 1 . . . . . Explosive 50 | . . . 7 . . 3 . 4 4 . . . . 32 Electromagnetic 229 | . . . 65 101 60 . . 3 . . . . . . Robot Hit Streak 18 | 5 15 8 9 18 12 6 13 10 3 . . . . 4 Robot Miss Streak 7 | 4 5 5 2 6 3 7 4 4 1 . . . . 2 Penetration Max 2 | . . . . . 1 . 2 . . . . . . . Secondary Targets 8 | . 2 . 2 . . 2 2 . . . . . . . Max Gunslinging Chain 1 | . 1 . 1 . . 1 1 . . . . . . . Shots Hit Robots 503 | 25 122 43 54 72 50 37 50 14 4 5 . 2 . 25 Core Hits 341 | 17 49 12 44 38 28 31 30 22 7 4 . . . 59 Critical Kills 4 | 1 . 1 . . . 1 . . . 1 . . . . Critical Parts Destroyed . | . . . . . . . . . . . . . . . Critical Strikes 9 | 1 . 1 1 2 1 1 . . . 1 . . . 1 Burn 1 | . . . . 1 . . . . . . . . . . Destroy 3 | 1 . 1 . . . 1 . . . . . . . . Corrupt 3 | . . . 1 1 1 . . . . . . . . . Smash 1 | . . . . . . . . . . 1 . . . . Impale 1 | . . . . . . . . . . . . . . 1 Melee Attacks 63 | . . . . . 3 . . . 3 12 1 3 1 40 Impact 8 | . . . . . . . . . . 4 1 3 . . Slashing 14 | . . . . . 3 . . . 3 8 . . . . Piercing 41 | . . . . . . . . . . . . . 1 40 Sneak Attacks 4 | . . . . . . . . . . 1 . . . 3 Combat Hostiles . | . . . . . . . . . . . . . . . Follow-up Attacks . | . . . . . . . . . . . . . . . Damage Inflicted 14676 | 207 1168 518 1882 1753 1102 1074 1184 855 636 309 . 244 . 3744 Guns 6038 | 207 925 189 675 1176 1087 627 1017 113 22 . . . . . Cannons 880 | . 224 325 119 . . . 167 45 . . . . . . Explosions 6160 | . . . 1079 525 . 447 . 697 526 . . . . 2886 Melee 1499 | . . . . . . . . . 88 309 . 244 . 858 Ramming 47 | . 19 4 9 . 15 . . . . . . . . . Kinetic 4064 | 207 1008 514 166 . 390 627 1017 113 22 . . . . . Thermal 657 | . 141 . . 304 . . 167 45 . . . . . . Explosive 5461 | . . . 1079 . . 447 . 523 526 . . . . 2886 Electromagnetic 2948 | . . . 628 1449 697 . . 174 . . . . . . Impact 316 | . . . . . . . . . . 72 . 244 . . Slashing 325 | . . . . . . . . . 88 237 . . . . Piercing 858 | . . . . . . . . . . . . . . 858 Highest Corruption 7 | . . . . 7 3 . . . . . 2 2 2 5 Average Corruption 5 | . . . . 7 1 . . . . . 2 2 2 5 Corruption Purged . | . . . . . . . . . . . . . . . Corruption Blocked . | . . . . . . . . . . . . . . . Effects 37 | . . . . 26 3 . . . . . . 1 . 7 Message Errors 5 | . . . . 3 . . . . . . . . . 2 Matter Fused 12 | . . . . 11 . . . . . . . . . 1 Heat Flow Errors 5 | . . . . 3 1 . . . . . . . . 1 Energy Discharges 6 | . . . . 5 . . . . . . . 1 . . Parts Rejected 3 | . . . . 1 . . . . . . . . . 2 Data Loss (minor) 2 | . . . . . 1 . . . . . . . . 1 Data Loss (major) 1 | . . . . 1 . . . . . . . . . . Misfires 1 | . . . . . 1 . . . . . . . . . Alerts 1 | . . . . 1 . . . . . . . . . . Weapon Failures 1 | . . . . 1 . . . . . . . . . . Overload Shots . | . . . . . . . . . . . . . . . Overflow Damage 498 | . . 3 38 25 . 26 . . 18 71 . 202 . 115 Projectiles 3 | . . 3 . . . . . . . . . . . . Explosions 131 | . . . 38 25 . 26 . . . . . . . 42 Melee 364 | . . . . . . . . . 18 71 . 202 . 73 Knockbacks 1 | . . 1 . . . . . . . . . . . . Impact . | . . . . . . . . . . . . . . . Kinetic 1 | . . 1 . . . . . . . . . . . . Secondary . | . . . . . . . . . . . . . . . Self-Inflicted Damage 155 | . . . 48 25 43 . . . . . . . . 39 Shots 5 | . . . 1 1 1 . . . . . . . . 2 Rammed 7 | . 5 . 2 . . . . . . . . . . . Targets Rammed 10 | . 6 1 2 . 1 . . . . . . . . . Kicked 3 | . 1 1 . . 1 . . . . . . . . . Crushed . | . . . . . . . . . . . . . . . Highest Temperature 391 | . 98 127 217 391 325 6 203 6 . . . 241 . 229 Average Temperature 71 | . 31 48 72 106 82 4 71 4 . . . 200 . 35 Received Heat Transfer 1839 | . 435 81 72 360 66 57 84 . 69 42 . . . 573 Effects 3 | . . . . . 3 . . . . . . . . . Interference 3 | . . . . . 3 . . . . . . . . . Siege Activations . | . . . . . . . . . . . . . . . Martial Activations . | . . . . . . . . . . . . . . . Shielding Activations . | . . . . . . . . . . . . . . . Robots Disrupted 1 | . . . . . 1 . . . . . . . . . Combat Hostiles 1 | . . . . . 1 . . . . . . . . . Robots Corrupted 6 | . . . 1 3 2 . . . . . . . . . Combat Hostiles 6 | . . . 1 3 2 . . . . . . . . . Parts Fried 15 | . . . . 7 7 . . . . . . 1 . . Impact Corruptions 5 | . . . . . . . . . . . . 5 . . Robots Melted . | . . . . . . . . . . . . . . . Combat Hostiles . | . . . . . . . . . . . . . . . Parts Melted 6 | . 2 3 . 1 . . . . . . . . . . Heat Transferred 1401 | . 325 . . 780 . . 222 74 . . . . . . Parts Sabotaged . | . . . . . . . . . . . . . . . Parts Stolen . | . . . . . . . . . . . . . . . Parts Stripped . | . . . . . . . . . . . . . . . Power Chain Reactions 4 | . . . . 4 . . . . . . . . . . Alert | -11 -10 -9 -9 -8 -7 -7 -7 -7 -6 -6 -6 -6 -6 -6 ------- Run | Yrd Mat Mat Min Mat Fac Low Low Dat Pro Fac Low Low Zio Dee Maximum Alert Level 1 | . . . 1 1 1 . . . . . . . . . Low Security (%) 74 | 100 100 100 64 25 68 . . . . 100 . . . . Level 1 25 | . . . 35 74 31 . . . . . . . . . Level 2 . | . . . . . . . . . . . . . . . Level 3 . | . . . . . . . . . . . . . . . Level 4 . | . . . . . . . . . . . . . . . Level 5 . | . . . . . . . . . . . . . . . High Security . | . . . . . . . . . . . . . . . Max Security . | . . . . . . . . . . . . . . . Peak Influence 368 | 10 115 30 297 368 243 . . . . 123 . . . . Initial 158 | . . 14 5 86 158 . . . . 40 . . . . Average 110 | 1 40 5 101 245 172 . . . . 69 . . . . Influence Increases 3476 | 40 538 106 533 722 637 225 190 . 195 205 30 55 . . Destroy 0b10 Robot/C 1920 | . 420 40 180 480 240 200 160 . 80 120 . . . . Destroy 0b10 Robot/NC 160 | 40 10 40 10 5 30 . . . . 15 . 10 . . Destroy Leader 444 | . 94 24 30 120 96 20 30 . 10 20 . . . . Allied During Kill 36 | . . . . 17 14 5 . . . . . . . . Successful Hack 87 | . 14 . . 16 40 . . . . 17 . . . . Disable Machine 165 | . . . . 60 75 . . . . 30 . . . . Destroy Structure 52 | . . 2 36 9 2 . . . . 3 . . . . Partial Spotted 15 | . . . 15 . . . . . . . . . . . Lose Combat Pursuer 195 | . . . . 15 . . . . 105 . 30 45 . . Miscellaneous 402 | . . . 262 . 140 . . . . . . . . . Influence Decreases 3476 | 40 504 126 324 595 788 424 190 . 130 205 75 75 . . Entered New Map 486 | . . 20 9 137 192 74 . . . 25 25 4 . . Time Decay 2617 | 40 454 103 265 398 506 350 180 . 70 130 50 71 . . Lost Part 213 | . 50 3 50 20 10 . 10 . 60 10 . . . . Lost Ally 160 | . . . . 40 80 . . . . 40 . . . . Squads Dispatched 19 | . 6 2 . 6 5 . . . . . . . . . Investigation 7 | . 3 1 . 1 2 . . . . . . . . . Extermination 3 | . . . . . 3 . . . . . . . . . Reinforcement 6 | . 3 1 . 2 . . . . . . . . . . Assault . | . . . . . . . . . . . . . . . Garrison 3 | . . . . 3 . . . . . . . . . . Intercept . | . . . . . . . . . . . . . . . Searches Triggered . | . . . . . . . . . . . . . . . Construction Impeded . | . . . . . . . . . . . . . . . Haulers Reinforced . | . . . . . . . . . . . . . . . Active Scanning Responses . | . . . . . . . . . . . . . . . Cargo Convoy Interrupts . | . . . . . . . . . . . . . . . Stealth | -11 -10 -9 -9 -8 -7 -7 -7 -7 -6 -6 -6 -6 -6 -6 --------- Run | Yrd Mat Mat Min Mat Fac Low Low Dat Pro Fac Low Low Zio Dee Distress Signals 6 | . 1 . . 4 1 . . . . . . . . . Communications Jammed . | . . . . . . . . . . . . . . . Distress Signals . | . . . . . . . . . . . . . . . Times Spotted 283 | . 36 4 45 32 12 15 9 4 11 11 2 6 . 96 Peak Tracking Total 67 | . 5 1 19 4 2 4 3 4 8 5 2 3 . 67 Tactical Retreats 10 | . . . 3 1 . . . . 3 . 1 1 . 1 Traps | -11 -10 -9 -9 -8 -7 -7 -7 -7 -6 -6 -6 -6 -6 -6 ------- Run | Yrd Mat Mat Min Mat Fac Low Low Dat Pro Fac Low Low Zio Dee Traps Triggered 14 | . 7 1 . 4 2 . . . . . . . . . Indirectly 3 | . . . . 3 . . . . . . . . . . Trap Hack Attempts . | . . . . . . . . . . . . . . . Triggered . | . . . . . . . . . . . . . . . Disarmed . | . . . . . . . . . . . . . . . Reprogrammed . | . . . . . . . . . . . . . . . Reused . | . . . . . . . . . . . . . . . Traps Extracted . | . . . . . . . . . . . . . . . Installed . | . . . . . . . . . . . . . . . Triggered . | . . . . . . . . . . . . . . . Machines | -11 -10 -9 -9 -8 -7 -7 -7 -7 -6 -6 -6 -6 -6 -6 ---------- Run | Yrd Mat Mat Min Mat Fac Low Low Dat Pro Fac Low Low Zio Dee Machines Disabled 13 | . . . . 4 5 . 1 1 . 2 . . . . Max in Single Turn 4 | . . . . 4 2 . 1 1 . 1 . . . . Garrison Access 1 | . . . . 1 . . . . . . . . . . Machines Repaired . | . . . . . . . . . . . . . . . Machines Dismantled . | . . . . . . . . . . . . . . . Machines Sabotaged . | . . . . . . . . . . . . . . . Overloaded Fab Kills . | . . . . . . . . . . . . . . . Hacking | -11 -10 -9 -9 -8 -7 -7 -7 -7 -6 -6 -6 -6 -6 -6 --------- Run | Yrd Mat Mat Min Mat Fac Low Low Dat Pro Fac Low Low Zio Dee Machines Accessed 29 | . 5 2 . 4 9 1 . 4 . 4 . . . . Terminals 14 | . 5 2 . 2 2 . . . . 3 . . . . Fabricators 2 | . . . . . 2 . . . . . . . . . Repair Stations 3 | . . . . . 2 . . . . 1 . . . . Recycling Units . | . . . . . . . . . . . . . . . Scanalyzers 2 | . . . . 1 1 . . . . . . . . . Garrison Access 3 | . . . . 1 2 . . . . . . . . . Total Hacks 93 | . 15 5 . 10 24 7 . 27 . 5 . . . . Successful 64 | . 8 2 . 7 10 7 . 27 . 3 . . . . Failed 29 | . 7 3 . 3 14 . . . . 2 . . . . Catastrophic 5 | . . 2 . . 3 . . . . . . . . . Database Lockouts . | . . . . . . . . . . . . . . . Manual 39 | . 19 5 . . 7 . . . . 2 . . 6 . Terminals 34 | . 15 5 . 6 5 . . . . 3 . . . . Fabricators 9 | . . . . . 9 . . . . . . . . . Repair Stations 5 | . . . . . 3 . . . . 2 . . . . Recycling Units . | . . . . . . . . . . . . . . . Scanalyzers 6 | . . . . 2 4 . . . . . . . . . Garrison Access 5 | . . . . 2 3 . . . . . . . . . Terminal Hacks 42 | . 2 . . 4 1 7 . 27 . 1 . . . . Record 18 | . . . . . . 7 . 11 . . . . . . Part Schematic 8 | . . . . . . . . 8 . . . . . . Robot Schematic 5 | . . . . . . . . 5 . . . . . . Robot Analysis 2 | . 1 . . 1 . . . . . . . . . . Prototype ID Bank 4 | . 1 . . . . . . 3 . . . . . . Level Access Points 1 | . . . . 1 . . . . . . . . . . Branch Access Points 1 | . . . . . 1 . . . . . . . . . Zone Layout 3 | . . . . 2 . . . . . 1 . . . . Fabricator Hacks 3 | . . . . . 3 . . . . . . . . . Network Status 2 | . . . . . 2 . . . . . . . . . Build 1 | . . . . . 1 . . . . . . . . . Repair Station Hacks 3 | . . . . . 2 . . . . 1 . . . . Scan Component 2 | . . . . . 1 . . . . 1 . . . . Repair 1 | . . . . . 1 . . . . . . . . . Recycling Unit Hacks . | . . . . . . . . . . . . . . . Scanalyzer 4 | . . . . 2 2 . . . . . . . . . Retrieve Study 4 | . . . . 2 2 . . . . . . . . . Garrison Access Hacks 1 | . . . . 1 . . . . . . . . . . Seal Access 1 | . . . . 1 . . . . . . . . . . Unauthorized Hacks 11 | . 6 2 . . 2 . . . . 1 . . . . Terminals 9 | . 6 2 . . . . . . . 1 . . . . Assimilate 1 | . . . . . . . . . . 1 . . . . Botnet 4 | . 3 1 . . . . . . . . . . . . Skim 4 | . 3 1 . . . . . . . . . . . . Fabricators 2 | . . . . . 2 . . . . . . . . . Liberate 1 | . . . . . 1 . . . . . . . . . Haulers 1 | . . . . . 1 . . . . . . . . . Repair Stations . | . . . . . . . . . . . . . . . Recycling Units . | . . . . . . . . . . . . . . . Scanalyzers . | . . . . . . . . . . . . . . . Garrison Access . | . . . . . . . . . . . . . . . Data Cores Recovered . | . . . . . . . . . . . . . . . Used . | . . . . . . . . . . . . . . . Hacking Detections 17 | . 4 2 . 2 7 . . . . 2 . . . . Full Trace Events 1 | . . . . . 1 . . . . . . . . . Feedback Events . | . . . . . . . . . . . . . . . Feedback Blocked . | . . . . . . . . . . . . . . . Robot Schematics Acquired 8 | . . . . . . . . 5 . . . . 3 . Robots Built . | . . . . . . . . . . . . . . . Authchips . | . . . . . . . . . . . . . . . Time . | . . . . . . . . . . . . . . . Total Robot Build Rating . | . . . . . . . . . . . . . . . Part Schematics Acquired 21 | . . . . . . . . 8 . . . . 13 . Parts Built 2 | . . . . . 2 . . . . . . . . . Authchips . | . . . . . . . . . . . . . . . Time 106 | . . . . . 106 . . . . . . . . . Total Part Build Rating 12 | . . . . . 12 . . . . . . . . . Part Studies Acquired 4 | . . . . 2 2 . . . . . . . . . Parts Repaired 1 | . . . . . 1 . . . . . . . . . Time 61 | . . . . . 61 . . . . . . . . . Parts Recycled . | . . . . . . . . . . . . . . . Recycled Matter . | . . . . . . . . . . . . . . . Retrieved Matter . | . . . . . . . . . . . . . . . Retrieved Components . | . . . . . . . . . . . . . . . Parts Scanalyzed . | . . . . . . . . . . . . . . . Part Schematics Acquired . | . . . . . . . . . . . . . . . Parts Damaged . | . . . . . . . . . . . . . . . Bothacking | -11 -10 -9 -9 -8 -7 -7 -7 -7 -6 -6 -6 -6 -6 -6 ------------ Run | Yrd Mat Mat Min Mat Fac Low Low Dat Pro Fac Low Low Zio Dee Used RIF Installer . | . . . . . . . . . . . . . . . Robots Hacked . | . . . . . . . . . . . . . . . Non-combat . | . . . . . . . . . . . . . . . Combat . | . . . . . . . . . . . . . . . Robot Hacks Applied . | . . . . . . . . . . . . . . . Relay Couplers Released . | . . . . . . . . . . . . . . . Fabnet Peak Effective % . | . . . . . . . . . . . . . . . Robots Rewired 3 | . . . . . . . 3 . . . . . . . Allies Hacked . | . . . . . . . . . . . . . . . Hacks Repelled . | . . . . . . . . . . . . . . . Allies | -11 -10 -9 -9 -8 -7 -7 -7 -7 -6 -6 -6 -6 -6 -6 -------- Run | Yrd Mat Mat Min Mat Fac Low Low Dat Pro Fac Low Low Zio Dee Total Allies 18 | . . . 2 4 3 . 3 . . 4 . . 2 . Largest Group 3 | . . . 2 2 3 1 3 3 . 3 . . 2 2 Highest-Rated Group 192 | . . . 43 36 120 36 48 48 . 129 . . 192 192 Highest-Rated Ally 96 | . . . 31 18 40 36 16 16 . 43 . . 96 96 Total Orders . | . . . . . . . . . . . . . . . Ally Attacks 83 | . . . 6 5 13 5 . 14 . 13 . . . 27 Total Damage 1720 | . . . 40 126 331 38 . 107 . 456 . . . 622 Kills 16 | . . . 1 3 2 . . . . 5 . . . 5 Allies Corrupted . | . . . . . . . . . . . . . . . Allies Melted 1 | . . . . . . . . . . . . . . 1 Fabricated Assembled 1 | . . . . . . . . . . 1 . . . . X0-1V1 Amusement Gains 230 | . 15 . 20 . 10 . . 95 10 . . . . 80 Good Acts 48 | . . 3 3 6 7 7 6 . 6 4 1 5 . . Bad Acts 41 | . . . 9 3 10 8 5 . . 1 2 3 . . Intel | -11 -10 -9 -9 -8 -7 -7 -7 -7 -6 -6 -6 -6 -6 -6 ------- Run | Yrd Mat Mat Min Mat Fac Low Low Dat Pro Fac Low Low Zio Dee Active Infowar (turns) 2777 | . . 6 647 . 1035 151 . . 92 248 104 167 215 112 Optics 182 | . . . . . . . . . . 182 . . . . Sensors 2123 | . . . . . 1035 151 . . 92 247 104 167 215 112 Seismic 653 | . . 6 647 . . . . . . . . . . . Jamming 1 | . . . . . . . . . . 1 . . . . Robot Analysis Total 2 | . 1 . . 1 . . . . . . . . . . Derelict Logs Recovered 9 | . . . 1 . . 1 3 . 1 . . 2 1 . Drone Launches . | . . . . . . . . . . . . . . . Drone Recoveries . | . . . . . . . . . . . . . . . Exploration | -11 -10 -9 -9 -8 -7 -7 -7 -7 -6 -6 -6 -6 -6 -6 ------------- Run | Yrd Mat Mat Min Mat Fac Low Low Dat Pro Fac Low Low Zio Dee Turns Passed 9635 | 307 1644 423 1159 948 1364 956 949 264 163 268 104 167 217 702 Spaces Moved 7841 | 155 746 254 586 444 1100 808 630 125 224 491 359 554 736 629 Core 226 | 22 . . . . . . . . 122 . . . . 82 Treads 1671 | 133 462 1 586 444 45 . . . . . . . . . Legs 3314 | . 284 253 . . 1055 808 630 125 17 . . . . 142 Wheels . | . . . . . . . . . . . . . . . Hover 214 | . . . . . . . . . . . . . . 214 Flight 2416 | . . . . . . . . . 85 491 359 554 736 191 Fastest Speed 24 | 50 120 120 170 162 101 108 108 180 50 27 28 24 24 24 Average Speed 100 | 150 171 120 170 163 107 108 136 181 58 35 28 25 24 69 Slowest Speed 240 | 200 240 170 170 167 162 108 180 184 184 109 28 28 24 200 Overloaded Moves . | . . . . . . . . . . . . . . . Propulsion Burnouts . | . . . . . . . . . . . . . . . Robots Hopped 4 | . . . . . . . . . . 3 . . 1 . Potential Cave-ins . | . . . . . . . . . . . . . . . Cave-ins Triggered . | . . . . . . . . . . . . . . . Exploration Rate (%) 59 | 7 96 23 88 44 33 93 87 78 51 17 64 70 84 54 Regions Visited 14 Branch Regions 9 Pre-discovered Areas 5 | . . . 1 . . . 1 1 . . . 1 1 . Known Exits Taken 8 | . . . . 1 1 1 . . 1 1 1 1 1 . Unknown Exits Taken 6 | 1 1 1 1 . . . 1 1 . . . . . . Scrap Searched 17 | . . . 3 . . 2 6 . 2 . 1 2 1 . Spaces Dug 56 | . . . 9 . 2 21 . . 19 3 1 1 . . Terrain Destroyed 258 | . . . 47 9 3 31 . 23 32 3 1 1 . 108 Melee 7 | . . . . . 2 . . . . 3 1 1 . . Projectile 4 | . . . . . 1 2 . 1 . . . . . . AOE 247 | . . . 47 9 . 29 . 22 32 . . . . 108 Terrain Rammed . | . . . . . . . . . . . . . . . Walls Destroyed . | . . . . . . . . . . . . . . . Machines Disabled . | . . . . . . . . . . . . . . . Actions | -11 -10 -9 -9 -8 -7 -7 -7 -7 -6 -6 -6 -6 -6 -6 --------- Run | Yrd Mat Mat Min Mat Fac Low Low Dat Pro Fac Low Low Zio Dee Total 8868 | 190 955 319 658 574 1212 849 671 147 246 557 360 578 773 779 Wait 219 | . 73 . . 42 19 2 . 4 . 20 . 14 25 20 Move 7819 | 154 745 253 585 443 1099 807 629 124 223 484 358 553 733 629 Hop 4 | . . . . . . . . . . 3 . . 1 . Pick Up 93 | 8 13 10 5 9 20 6 3 4 2 5 . 1 2 5 Fast Attach 68 | 6 7 . 1 8 2 1 . . 2 14 . 1 5 21 Attach 46 | . 5 3 4 5 4 . 7 4 2 5 . 2 . 5 Detach 25 | . 2 . . 1 . . 2 1 2 5 . 3 . 9 Swap 51 | . 5 7 5 5 14 3 1 . 2 2 1 . . 6 Drop 89 | . 7 13 1 9 20 8 . . 5 7 . 1 6 12 Fire 371 | 22 92 32 55 52 30 22 19 10 5 . . . . 32 Melee 63 | . . . . . 3 . . . 3 12 1 3 1 40 Ram . | . . . . . . . . . . . . . . . Kick 3 | . 1 1 . . 1 . . . . . . . . . Crush 7 | . 5 . 2 . . . . . . . . . . . Escape Stasis . | . . . . . . . . . . . . . . . Rewire 10 | . . . . . . . 10 . . . . . . . Trap . | . . . . . . . . . . . . . . . Miscellaneous . | . . . . . . . . . . . . . . . Route ------- -11/Scrapyard -10/Materials (discovered 6 exits: *Mat x3 / [*Min x2] / [*Sub]) -9/Materials -9/Mines (discovered 2 exits: *Mat x2) -8/Materials (discovered 3 exits: *Fac x3) -7/Factory (discovered 5 exits: *Fac x2 / *Sto / *Low x2) -7/Lower Caves -7/Lower Caves (discovered 2 exits: *Fac / *Dat) -7/Data Miner -6/Proximity Caves -6/Factory (discovered 3 exits: [*Fac] / *Low / Ext) -6/Lower Caves -6/Lower Caves (discovered 2 exits: [*Fac] / *Zio) -6/Zion (discovered 2 exits: *Dee / [*Pro]) -6/Deep Caves History --------- Turn | Location | Event 2 | -11/Scrapyard | Met Revision 17 24 | -11/Scrapyard | Discovered new exit (range 14) 308 | -11/Scrapyard | Entered Materials 309 | -10/Materials | Build established: Mutant 610 | -10/Materials | Discovered new exit (range 15) 940 | -10/Materials | Core integrity fell below 50% 1139 | -10/Materials | Discovered new exit (range 12) 1142 | -10/Materials | Discovered new exit (range 14) 1528 | -10/Materials | Discovered new exit (range 8) 1693 | -10/Materials | Discovered new exit (range 14) 1923 | -10/Materials | Discovered new exit (range 7) 1934 | -10/Materials | Prayed at D.C.S.S. Altar Unit 1952 | -10/Materials | Entered another Materials area 1952 | -9/Materials | Evolved 2 slots: Propulsion x1, Utility x1 2005 | -9/Materials | X0-1V1 foreshadows a heat wave 2224 | -9/Materials | Ambient heat levels rising (+10) 2354 | -9/Materials | Discovered new exit (range 13) 2375 | -9/Materials | Entered Mines 2382 | -9/Mines | Received a Rocket Launcher from a helpful Derelict 2402 | -9/Mines | Heat dissipation permanently improved by X0-1V1 (+15) 2506 | -9/Mines | Discovered new exit (range 5) 2545 | -9/Mines | Joined a pair of Derelicts in attacking an 0b10 outpost 2926 | -9/Mines | Assembled infested the area 2931 | -9/Mines | Assisted by a Guerilla fighting off Assembled 2936 | -9/Mines | A weapon hastily lodged in a ceiling crevice suddenly fell to the ground 3031 | -9/Mines | Destroyed 14 combat bots 3115 | -9/Mines | Learned location of Zion (-6) 3121 | -9/Mines | X0-1V1 added 0b10 threat records associated with you (major) 3238 | -9/Mines | Discovered new exit (range 10) 3248 | -9/Mines | X0-1V1 whisked you away to safety 3311 | -9/Mines | X0-1V1 mutated your Weapon slot to Utility slot 3534 | -9/Mines | Entered Materials 3534 | -8/Materials | Evolved 2 slots: Propulsion x1, Weapon x1 3574 | -8/Materials | Core integrity permanently improved by X0-1V1 (+200) 3657 | -8/Materials | Weapon slot count permanently improved by X0-1V1 (+1) 3722 | -8/Materials | X0-1V1 sent allied L-31 Rogue (x2) 4040 | -8/Materials | Identified exit to Factory 4214 | -8/Materials | Build established: Gunner 4310 | -8/Materials | X0-1V1 sent allied B-36 Bruiser (x2) 4327 | -8/Materials | X0-1V1 sent you to a vault 4365 | -8/Materials | X0-1V1 activates XOMVISION 4482 | -8/Materials | Entered Factory 4482 | -7/Factory | Accompanied by 2 allies 4482 | -7/Factory | Evolved 2 slots: Utility x2 4906 | -7/Factory | Fabricated Adv. Field Recycling Unit? 4964 | -7/Factory | X0-1V1 sent hostile H-55 Commando (x2) 4977 | -7/Factory | X0-1V1 redirected Transport squads to designated parking area 4979 | -7/Factory | Sensors blinded by X0-1V1 4980 | -7/Factory | X0-1V1 added 0b10 threat records associated with you (minor) 5104 | -7/Factory | Discovered new exit (range 16) 5406 | -7/Factory | Sensors blinded by X0-1V1 5423 | -7/Factory | Discovered new exit (range 14) 5436 | -7/Factory | Identified exit to Factory 5457 | -7/Factory | Repaired Corrupted Gauss Rifle+? 5548 | -7/Factory | X0-1V1 sent you to a vault 5633 | -7/Factory | Discovered new exit (range 15) 5648 | -7/Factory | Identified exit to Storage 5720 | -7/Factory | Identified exit to Lower Caves 5846 | -7/Factory | Entered Lower Caves 5846 | -7/Lower Caves | Accompanied by 1 ally 5924 | -7/Lower Caves | Identified exit to Lower Caves 5924 | -7/Lower Caves | X0-1V1 revealed exit location to -7/Lower Caves 5997 | -7/Lower Caves | X0-1V1 mutated your Utility slot to Power slot 6026 | -7/Lower Caves | Learned Factory stockpile data 6037 | -7/Lower Caves | X0-1V1 vaporized surrounding terrain (radius 16) 6042 | -7/Lower Caves | X0-1V1 rewrote Marksman 4a IFF filter 6180 | -7/Lower Caves | X0-1V1 activates XOMVISION 6276 | -7/Lower Caves | Learned location of 1 exit from Factory 6276 | -7/Lower Caves | Learned Research trap positions 6276 | -7/Lower Caves | Learned Factory terminal intel 6276 | -7/Lower Caves | Learned Extension emergency access door positions 6438 | -7/Lower Caves | X0-1V1 sent you into danger 6439 | -7/Lower Caves | Ambushed by wild Derelicts 6510 | -7/Lower Caves | Attracted the attention of an 0b10 checkpoint 6614 | -7/Lower Caves | X0-1V1 activates XOMVISION 6802 | -7/Lower Caves | Entered another Lower Caves area 6802 | -7/Lower Caves | Discovered exit to Factory (range 12) 6947 | -7/Lower Caves | Learned location of 1 exit from Factory 6950 | -7/Lower Caves | Learned location of Extension (-6) 6995 | -7/Lower Caves | Attracted the attention of an 0b10 checkpoint 7060 | -7/Lower Caves | Spotted B-75 Beast 7238 | -7/Lower Caves | Weapon slot count temporarily expanded by X0-1V1 (+3) 7250 | -7/Lower Caves | X0-1V1 vaporized surrounding terrain (radius 21) 7273 | -7/Lower Caves | Destroyed B-75 Beast 7415 | -7/Lower Caves | Learned 4 Factory zone layouts 7458 | -7/Lower Caves | X0-1V1 mutated your Propulsion slot to Utility slot 7539 | -7/Lower Caves | Build established: Scavenger-Executioner 7581 | -7/Lower Caves | Attacked by a delusional Derelict stockpiling Unaware 7685 | -7/Lower Caves | Discovered new exit (range 8) 7751 | -7/Lower Caves | Entered Data Miner 7751 | -7/Data Miner | Accompanied by 3 allies 7751 | -7/Data Miner | Discovered new exit (range 6) 7786 | -7/Data Miner | Met Data Miner 7834 | -7/Data Miner | Learned location of Section 7 (-2) 7834 | -7/Data Miner | Acquired the access code to Warlord's prototype stash 7852 | -7/Data Miner | Received God Mode back door access code from Data Miner 7869 | -7/Data Miner | Data Conduit disabled 7925 | -7/Data Miner | Lost 3 allies 7926 | -7/Data Miner | Lost 6 parts (1p2n3w) 8015 | -7/Data Miner | Entered Proximity Caves 8015 | -6/Proximity Caves | Spotted B-75 Beast 8045 | -6/Proximity Caves | Attracted the attention of an 0b10 base 8058 | -6/Proximity Caves | Core integrity restored by X0-1V1 (+132) 8060 | -6/Proximity Caves | X0-1V1 revealed exit location to -6/Factory 8084 | -6/Proximity Caves | Lost 9 parts (3n3u3w) 8103 | -6/Proximity Caves | Core integrity restored by X0-1V1 (+132) 8166 | -6/Proximity Caves | Learned 8 Factory zone layouts 8178 | -6/Proximity Caves | Entered Factory 8178 | -6/Factory | Evolved 2 slots: Propulsion x2 8179 | -6/Factory | Identified exit to Lower Caves 8179 | -6/Factory | Identified exit to Extension 8182 | -6/Factory | Loaded intel: 28 terminal locations 8301 | -6/Factory | X0-1V1 sent you to a vault 8318 | -6/Factory | Found Mobile Assembly Unit 8325 | -6/Factory | X0-1V1 activates XOMVISION 8340 | -6/Factory | Discovered new exit (range 21) 8446 | -6/Factory | Entered Lower Caves 8464 | -6/Lower Caves | X0-1V1 vaporized surrounding terrain (radius 15) 8500 | -6/Lower Caves | Discovered new exit (range 8) 8501 | -6/Lower Caves | Identified exit to Lower Caves 8550 | -6/Lower Caves | Entered another Lower Caves area 8550 | -6/Lower Caves | Discovered new exit (range 13) 8586 | -6/Lower Caves | Build established: Scavenger-Sprinter 8594 | -6/Lower Caves | Found Alien Artifact 8594 | -6/Lower Caves | Identified Core Expander 8594 | -6/Lower Caves | Installed Core Expander, added new Propulsion slot 8607 | -6/Lower Caves | X0-1V1 mutated your Utility slot to Propulsion slot 8660 | -6/Lower Caves | Learned Factory stockpile data 8708 | -6/Lower Caves | Identified exit to Zion 8708 | -6/Lower Caves | X0-1V1 revealed exit location to -6/Zion 8717 | -6/Lower Caves | Entered Zion 8737 | -6/Zion | Discovered new exit (range 9) 8742 | -6/Zion | Found Prototype Launcher 8742 | -6/Zion | Identified Gui. Missile Launcher 8754 | -6/Zion | System corruption cleaned by Quarantine Array 8766 | -6/Zion | Learned location of 1 exit from Factory 8775 | -6/Zion | Received a hallucinogenic algorithm 8776 | -6/Zion | Ran a hallucination algorithm 8783 | -6/Zion | Found CR-A16's Pointy Stick 8795 | -6/Zion | Given A8's code to call for help 8849 | -6/Zion | Found Prototype Device 8849 | -6/Zion | Identified Phasing AFG 8868 | -6/Zion | Acquired unknown access codes intercepted by a Zionite 8909 | -6/Zion | Opened final containment barrier to the Deep Caves 8913 | -6/Zion | Enhanced Grunt warped into view, answering call for help 8913 | -6/Zion | Discovered new exit (range 3) 8913 | -6/Zion | Saw the warning signs outside the Deep Caves entrance 8914 | -6/Zion | Identified exit to Deep Caves 8917 | -6/Zion | Enhanced Grunt warped into view, answering call for help 8934 | -6/Zion | Entered Deep Caves 8934 | -6/Deep Caves | Accompanied by 2 allies 8980 | -6/Deep Caves | X0-1V1 poked a wall 8986 | -6/Deep Caves | Attacked by Z-Imprinter 9001 | -6/Deep Caves | Allies destroyed Z-Imprinter 9028 | -6/Deep Caves | Z-Facility disabled 9077 | -6/Deep Caves | Lost 7 parts (1p5n1u) 9160 | -6/Deep Caves | Found Prototype Protection 9160 | -6/Deep Caves | Identified Zio. Heavy Carapace 9166 | -6/Deep Caves | Found Zio. Heavy Carapace 9177 | -6/Deep Caves | Found Prototype Protection 9177 | -6/Deep Caves | Identified Zio. Weapon Casing 9192 | -6/Deep Caves | Found Zio. Weapon Casing 9210 | -6/Deep Caves | Found Zio. Weapon Casing 9320 | -6/Deep Caves | Build established: Mutant 9370 | -6/Deep Caves | Destroyed 9 combat bots 9404 | -6/Deep Caves | Lost 7 parts (1p3n3u) 9429 | -6/Deep Caves | Core integrity fell below 50% 9550 | -6/Deep Caves | Found Zio. Weapon Casing 9552 | -6/Deep Caves | Found Zio. Heavy Carapace 9606 | -6/Deep Caves | Core integrity fell below 20% 9636 | -6/Deep Caves | Destroyed by as-66859 with Assembled P-sword Last Messages --------------- 09599_ Zio. Glidesys I destroyed. 09628_ Slug penetrates as-82381. 09628_ as-45575 destroyed. 09629_ Penetrated by Slug. 09631_ Zio. Glidesys I destroyed. 09632_ Penetrated by Slug. 09632_ Zio. Light DM Reactor destroyed. 09632_ Knocked back. 09633_ Penetrated by Slug. 09635_ Zio. Light DM Reactor destroyed. 09635_ Penetrated by Slug. 09635_ Slug penetrates as-58369. 09635_ Zio. Weapon Casing destroyed. 09636_ X0-1V1 is amused. 09636_ Zio. Glidesys I destroyed. 09636_ Prc. Grenade Launcher destroyed. 09636_ System corrupted by crushing effect (+4). 09636_ System corrupted by crushing effect (+1). 09636_ Knocked back. 09636_ X0-1V1 howls with laughter! Map ----- +----------------------------------------------------+ | ?????????????????????????????####???## ##??????? | | ?????????????????????????????# ???? ##?????? | | ?????????????????????????????# #???? ##????? | | ?????????????????????????????# ##???# ?????? | | ???????????????????????###??## #???# #??????? | | ??????????????????????## ??# #??## #??????? | | ??????????????????????# ??# #?## #??????? | | ??????????????????????# ### ### #?????## | | ??????????????????????# ?# ######## | | ??????????????????????# #?# ### ### ## | | ???????????????????????# ### ### | | ?????????????????????????# ## | | ?????????????????????????## a ###### | | ?????????????????????????## a##????# | | ????????????????????????## ##???# ### | | ???????????????????????## a ##??# ##?###### | | ?????????????????????### #??# ##???????? | | ????????????????????## #??####?????????? | | ????????????????????# ##??????????????? | | ????????????????????# #??????????????? | | ????????????????????## #??????????????? | | ?????????????????????# #??????????????? | | ????????????????????## a #??????????????? | | ???????????????????## aaaaa ##??????????????? | | ???????????????????# aaaa ##???????????????? | | ???????????????????# @ a ##????????????????? | | ???????????????????## ## aaa #?????????????????? | | ????????????????????####?##aaaa#?????????????????? | | ??????????????????????????#aaa a#????????????????? | | ??????????????????????????? aaaa #???????????????? | | ???????????????????????????# aaa #??????????????? | | ????????????????????????????# aaa #?????????????? | | ????????????????????????????? a a#?????????????? | | ????????????????????????????? a ????????????? | | ?????????????????????????????# ???????????? | | ??????????????????????????????# #####???????????? | | ??????????????????????????????? #???????????????? | | ???????????????????????????????? #???????????????? | | ???????????????????????????????? ???????????????? | | ???????????????????????????????????????????????? | | ??????????????????????????????????????????????# | | ??????????????????????????????????????????????## | | ???????????????????????????????????????????????## | | ????????????????????????????????????????????????## | | ?????????????????????????????????????????????????# | | ?????????????????????????????????????????????????# | | ?????????????????????????????????????????????????? | | | | | | | +----------------------------------------------------+ Best States ------------- Heat Dissipation 164 Energy Generation 49 Energy Capacity 1425 Matter Stores 755 Matter Capacity 1000 Sight Range 22 Robot Scan Range 16 Terrain Scan Density 10 Additional Mass Support 9 Armor Coverage 1200 Core Shielding 20 Weapon Shielding 100 Melee Speed Boost 20 Evasion (%) 65 Targeting Accuracy 10 Core Analysis 6 Recoil Reduction 4 Item Schematics ----------------- Combat Drone Bay | -7/Data Miner | Free Lgt. Regenerative Plating | -7/Data Miner | Free Cld. Cesium-ion Thruster | -7/Data Miner | Free Gravity Neutralizer | -7/Data Miner | Free Cld. Plasma Cannon | -7/Data Miner | Free Med. Armored Exoskeleton | -7/Data Miner | Free Mni. Drone Bay | -7/Data Miner | Free Imp. Remote Datajack | -7/Data Miner | Free Imp. Actuator Array | -6/Zion | Archive Imp. Focal Shield | -6/Zion | Archive Lgt. Angular Momentum Engine | -6/Zion | Archive Variable Charge Gun | -6/Zion | Archive Flexi-carbon Leg | -6/Zion | Archive Imp. Corruption Screen | -6/Zion | Archive Lyr. Medium Armor Plating | -6/Zion | Archive Lgt. Antimatter Reactor | -6/Zion | Archive Railgun | -6/Zion | Archive Enh. Optical Array | -6/Zion | Archive Adv. Shield Generator | -6/Zion | Archive Hvy. Shock Bomb Launcher | -6/Zion | Archive Antigrav System | -6/Zion | Archive Robot Schematics ------------------ E-15 Imp | -7/Data Miner | Free R-10 Processor | -7/Data Miner | Free L-41 Fighter | -7/Data Miner | Free G-50 Soldier | -7/Data Miner | Free A-15 Conveyor | -7/Data Miner | Free H-55 Commando | -6/Zion | Archive Y-54 Guardian | -6/Zion | Archive X-82 Rainmaker | -6/Zion | Archive Fabricated ------------ Adv. Field Recycling Unit | x2 | -7/Factory | Preloaded Repaired ---------- Gauss Rifle | 82% | -7/Factory | Corrupted Studied --------- Carbon-fiber Leg | -8/Materials | Hacked Plasma Cutter | -8/Materials | Hacked Coil Gun | -7/Factory | Hacked Gauss Rifle | -7/Factory | Hacked Alien Tech Used ----------------- Core Expander Achievements -------------- Chaos Is Inevitable Challenges ------------ None Game ------ Seed AccelerationVampiricCannon Manual? 0 Play Time 01:07:10 Cumulative 276.3 hours Start 2026.06.22 @ 19:34:15 End 2026.06.22 @ 20:46:23 Sessions 1 Manual Loads 0 Difficulty Rogue Special Mode None Game No. 283 Rogue 283 Adventurer 0 Explorer 0 Win Type - Total 14 Types 9/1/2/0/1/0/0/0/0/1 Lore% 89 Gallery% 77 Achievement% 64 Wizard Run 0 Options --------- Layout 1 ASCII 0 Keyboard 1 Movement Arrows Keybinds 0 Fullscreen 1 Font 24/Smallcaps Map View 50x40 Zoom Use 0% Tactical HUD 1 Map Filters NONE Filters NONE Steam 1 RUN: 013f7b3e-f03a-4bd0-a065-456380cb41d3